[Event "Titled Tuesday Blitz August 15 Late 2023"]
[White "Harriott, Tyrell"]
[Black "luksona14"]
[WhiteFideId "2086484"]
[WhiteElo "2421"]
[BlackElo "2588"]
[Result "1-0"]
[Round "3"]
[TimeControl "180+1"]
[Date "2023.08.15"]
[WhiteClock "0:00:24"]
[BlackClock "0:00:00"]
[Board "87"]

1. d4 {[%clk 0:03:00]}  Nf6 {[%clk 0:02:59]} 2. e3 {[%clk 0:02:58]}  b6 {[%clk 0:02:57]} 3. f4 {[%clk 0:02:57]}  Bb7 {[%clk 0:02:55]} 4. Nf3 {[%clk 0:02:57]}  e6 {[%clk 0:02:55]} 5. Bd3 {[%clk 0:02:57]}  d5 {[%clk 0:02:55]} 6. O-O {[%clk 0:02:57]}  Nbd7 {[%clk 0:02:56]} 7. Nbd2 {[%clk 0:02:57]}  Ne4 {[%clk 0:02:53]} 8. Ne5 {[%clk 0:02:52]}  Ndf6 {[%clk 0:02:53]} 9. Qf3 {[%clk 0:02:48]}  Nd6 {[%clk 0:02:45]} 10. Qh3 {[%clk 0:02:45]}  Nfe4 {[%clk 0:02:36]} 11. Ndf3 {[%clk 0:02:40]}  Be7 {[%clk 0:02:32]} 12. Bd2 {[%clk 0:02:34]}  O-O {[%clk 0:02:30]} 13. Be1 {[%clk 0:02:34]}  f6 {[%clk 0:02:23]} 14. Qxe6+ {[%clk 0:02:31]}  Kh8 {[%clk 0:02:19]} 15. Nh4 {[%clk 0:02:05]}  fxe5 {[%clk 0:02:11]} 16. Ng6+ {[%clk 0:01:57]}  hxg6 {[%clk 0:02:06]} 17. dxe5 {[%clk 0:01:57]}  Nf5 {[%clk 0:02:02]} 18. Qxg6 {[%clk 0:01:50]}  Qe8 {[%clk 0:01:55]} 19. Qg4 {[%clk 0:01:46]}  Nh6 {[%clk 0:01:34]} 20. Qe2 {[%clk 0:01:42]}  Qg6 {[%clk 0:01:23]} 21. Rd1 {[%clk 0:01:36]}  c5 {[%clk 0:01:23]} 22. c4 {[%clk 0:01:34]}  dxc4 {[%clk 0:01:20]} 23. Bxc4 {[%clk 0:01:33]}  Rad8 {[%clk 0:01:20]} 24. Bd3 {[%clk 0:01:33]}  c4 {[%clk 0:01:16]} 25. Bb1 {[%clk 0:01:32]}  Rxd1 {[%clk 0:01:15]} 26. Qxd1 {[%clk 0:01:32]}  Nf5 {[%clk 0:01:11]} 27. Qf3 {[%clk 0:01:27]}  Nh6 {[%clk 0:00:44]} 28. Bc3 {[%clk 0:01:08]}  Nxc3 {[%clk 0:00:31]} 29. Qxb7 {[%clk 0:01:05]}  Bc5 {[%clk 0:00:19]} 30. Bxg6 {[%clk 0:01:03]}  Bxe3+ {[%clk 0:00:16]} 31. Kh1 {[%clk 0:01:02]}  Nb5 {[%clk 0:00:10]} 32. f5 {[%clk 0:00:47]}  Bc5 {[%clk 0:00:08]} 33. f6 {[%clk 0:00:44]}  Rg8 {[%clk 0:00:07]} 34. Bf7 {[%clk 0:00:24]}  Nxf7 {[%clk 0:00:00]} 35. Qxf7 {[%clk 0:00:24]} 1-0


[Site "https://www.chess.com"]

[Event "Titled Tuesday Blitz August 15 Late 2023"]
[White "Szyszylo, Rafal"]
[Black "Graif, William"]
[WhiteFideId "1109626"]
[BlackFideId "2609835"]
[WhiteElo "2419"]
[BlackElo "2577"]
[Result "1-0"]
[Round "3"]
[TimeControl "180+1"]
[Date "2023.08.15"]
[WhiteClock "0:00:11"]
[BlackClock "0:00:00"]
[Board "89"]

1. e4 {[%clk 0:02:59]}  e5 {[%clk 0:02:59]} 2. Bc4 {[%clk 0:02:57]}  Bc5 {[%clk 0:02:57]} 3. Nc3 {[%clk 0:02:50]}  d6 {[%clk 0:02:50]} 4. d3 {[%clk 0:02:42]}  a6 {[%clk 0:02:45]} 5. f4 {[%clk 0:02:18]}  Nc6 {[%clk 0:02:33]} 6. f5 {[%clk 0:02:15]}  Bxg1 {[%clk 0:02:24]} 7. Rxg1 {[%clk 0:02:13]}  Qh4+ {[%clk 0:02:25]} 8. Kf1 {[%clk 0:02:12]}  Qxh2 {[%clk 0:02:15]} 9. Qg4 {[%clk 0:01:51]}  Kf8 {[%clk 0:02:00]} 10. Be3 {[%clk 0:01:42]}  h5 {[%clk 0:01:41]} 11. Qf3 {[%clk 0:01:37]}  Nf6 {[%clk 0:01:29]} 12. Nd5 {[%clk 0:01:28]}  Nxd5 {[%clk 0:01:24]} 13. Bxd5 {[%clk 0:01:27]}  h4 {[%clk 0:01:17]} 14. Kf2 {[%clk 0:01:22]}  Nd4 {[%clk 0:01:00]} 15. Bxd4 {[%clk 0:01:15]}  exd4 {[%clk 0:01:00]} 16. Rh1 {[%clk 0:00:58]}  Qe5 {[%clk 0:00:58]} 17. Rh3 {[%clk 0:00:46]}  c6 {[%clk 0:00:51]} 18. Bb3 {[%clk 0:00:46]}  Bd7 {[%clk 0:00:41]} 19. Rah1 {[%clk 0:00:46]}  Qf6 {[%clk 0:00:40]} 20. Qf4 {[%clk 0:00:44]}  g5 {[%clk 0:00:28]} 21. Qg4 {[%clk 0:00:44]}  Ke7 {[%clk 0:00:24]} 22. g3 {[%clk 0:00:42]}  hxg3+ {[%clk 0:00:23]} 23. Kxg3 {[%clk 0:00:43]}  Rxh3+ {[%clk 0:00:21]} 24. Rxh3 {[%clk 0:00:44]}  Qg7 {[%clk 0:00:19]} 25. Rh5 {[%clk 0:00:27]}  f6 {[%clk 0:00:18]} 26. Qh3 {[%clk 0:00:26]}  Kd8 {[%clk 0:00:12]} 27. Rh7 {[%clk 0:00:22]}  g4 {[%clk 0:00:10]} 28. Qh5 {[%clk 0:00:16]}  Qg5 {[%clk 0:00:10]} 29. Qxg5 {[%clk 0:00:15]}  fxg5 {[%clk 0:00:10]} 30. Rh8+ {[%clk 0:00:15]}  Be8 {[%clk 0:00:10]} 31. Kxg4 {[%clk 0:00:14]}  Ke7 {[%clk 0:00:10]} 32. Kxg5 {[%clk 0:00:14]}  Rd8 {[%clk 0:00:10]} 33. f6+ {[%clk 0:00:13]}  Kd7 {[%clk 0:00:09]} 34. Rh7+ {[%clk 0:00:12]}  Kc8 {[%clk 0:00:08]} 35. f7 {[%clk 0:00:12]}  Bd7 {[%clk 0:00:08]} 36. Kf6 {[%clk 0:00:12]}  d5 {[%clk 0:00:06]} 37. e5 {[%clk 0:00:12]}  c5 {[%clk 0:00:02]} 38. e6 {[%clk 0:00:12]}  Bxe6 {[%clk 0:00:02]} 39. Kxe6 {[%clk 0:00:12]}  c4 {[%clk 0:00:03]} 40. dxc4 {[%clk 0:00:12]}  dxc4 {[%clk 0:00:03]} 41. Bxc4 {[%clk 0:00:12]}  b5 {[%clk 0:00:02]} 42. Bd5 {[%clk 0:00:12]}  Rf8 {[%clk 0:00:00]} 43. Ke7 {[%clk 0:00:11]} 1-0


[Site "https://www.chess.com"]

[Event "Titled Tuesday Blitz August 15 Late 2023"]
[White "Przybylski, Wojciech"]
[Black "Baghdasaryan, Vahe"]
[WhiteFideId "1117599"]
[BlackFideId "13303139"]
[WhiteElo "2570"]
[BlackElo "2417"]
[Result "1-0"]
[Round "3"]
[TimeControl "180+1"]
[Date "2023.08.15"]
[WhiteClock "0:00:30"]
[BlackClock "0:00:01"]
[Board "90"]

1. d4 {[%clk 0:03:00]}  d5 {[%clk 0:02:57]} 2. Nf3 {[%clk 0:03:00]}  Nf6 {[%clk 0:02:56]} 3. g3 {[%clk 0:03:01]}  Bf5 {[%clk 0:02:53]} 4. Bg2 {[%clk 0:03:02]}  e6 {[%clk 0:02:54]} 5. O-O {[%clk 0:03:03]}  h6 {[%clk 0:02:54]} 6. c4 {[%clk 0:03:03]}  Be7 {[%clk 0:02:53]} 7. Qb3 {[%clk 0:03:02]}  Nc6 {[%clk 0:02:35]} 8. Bd2 {[%clk 0:02:46]}  Rb8 {[%clk 0:02:22]} 9. Nc3 {[%clk 0:02:30]}  O-O {[%clk 0:01:51]} 10. cxd5 {[%clk 0:02:23]}  exd5 {[%clk 0:01:49]} 11. Qa4 {[%clk 0:02:12]}  a6 {[%clk 0:01:35]} 12. Rac1 {[%clk 0:02:10]}  Ne4 {[%clk 0:01:24]} 13. Bf4 {[%clk 0:01:55]}  Nxc3 {[%clk 0:00:59]} 14. Rxc3 {[%clk 0:01:50]}  Bd6 {[%clk 0:00:57]} 15. Bxd6 {[%clk 0:01:39]}  Qxd6 {[%clk 0:00:58]} 16. Rfc1 {[%clk 0:01:37]}  Be4 {[%clk 0:00:55]} 17. e3 {[%clk 0:01:31]}  Rbc8 {[%clk 0:00:33]} 18. a3 {[%clk 0:01:28]}  Ne7 {[%clk 0:00:27]} 19. Ne5 {[%clk 0:01:19]}  Bxg2 {[%clk 0:00:26]} 20. Kxg2 {[%clk 0:01:19]}  c6 {[%clk 0:00:25]} 21. Qb3 {[%clk 0:01:14]}  f6 {[%clk 0:00:22]} 22. Nd3 {[%clk 0:01:13]}  Rc7 {[%clk 0:00:19]} 23. Nc5 {[%clk 0:01:13]}  Rb8 {[%clk 0:00:16]} 24. Nxa6 {[%clk 0:01:09]}  bxa6 {[%clk 0:00:13]} 25. Qxb8+ {[%clk 0:01:08]}  Kh7 {[%clk 0:00:11]} 26. Rb3 {[%clk 0:01:03]}  Qd7 {[%clk 0:00:11]} 27. Qb6 {[%clk 0:00:57]}  Rc8 {[%clk 0:00:10]} 28. Qxa6 {[%clk 0:00:56]}  Qf5 {[%clk 0:00:10]} 29. Qd3 {[%clk 0:00:55]}  Qxd3 {[%clk 0:00:07]} 30. Rxd3 {[%clk 0:00:55]}  Rb8 {[%clk 0:00:08]} 31. Rd2 {[%clk 0:00:53]}  Rb3 {[%clk 0:00:08]} 32. Rc3 {[%clk 0:00:53]}  Rb5 {[%clk 0:00:07]} 33. Rdc2 {[%clk 0:00:53]}  Rb6 {[%clk 0:00:06]} 34. h4 {[%clk 0:00:51]}  Kg8 {[%clk 0:00:07]} 35. Rc5 {[%clk 0:00:43]}  Kf7 {[%clk 0:00:08]} 36. Ra5 {[%clk 0:00:43]}  Ke6 {[%clk 0:00:07]} 37. Ra7 {[%clk 0:00:43]}  Kd6 {[%clk 0:00:07]} 38. Kf1 {[%clk 0:00:42]}  g5 {[%clk 0:00:07]} 39. h5 {[%clk 0:00:41]}  Nf5 {[%clk 0:00:04]} 40. Rf7 {[%clk 0:00:37]}  Ke6 {[%clk 0:00:04]} 41. Rc7 {[%clk 0:00:37]}  Ne7 {[%clk 0:00:03]} 42. Ke2 {[%clk 0:00:36]}  Kd6 {[%clk 0:00:04]} 43. Ra7 {[%clk 0:00:36]}  Ke6 {[%clk 0:00:05]} 44. g4 {[%clk 0:00:34]}  f5 {[%clk 0:00:05]} 45. f3 {[%clk 0:00:34]}  fxg4 {[%clk 0:00:05]} 46. fxg4 {[%clk 0:00:34]}  Kd6 {[%clk 0:00:06]} 47. Ra8 {[%clk 0:00:31]}  c5 {[%clk 0:00:01]} 48. dxc5+ {[%clk 0:00:30]} 1-0


[Site "https://www.chess.com"]

[Event "Titled Tuesday Blitz August 15 Late 2023"]
[White "Klinova, Masha"]
[Black "Francisco Guecamburu, Candela Be"]
[WhiteFideId "2802015"]
[BlackFideId "160911"]
[WhiteElo "2407"]
[BlackElo "2568"]
[Result "1-0"]
[Round "3"]
[TimeControl "180+1"]
[Date "2023.08.15"]
[WhiteClock "0:01:28"]
[BlackClock "0:00:04"]
[Board "92"]

1. e4 {[%clk 0:03:00]}  c5 {[%clk 0:02:59]} 2. Nf3 {[%clk 0:03:00]}  g6 {[%clk 0:02:59]} 3. c3 {[%clk 0:02:59]}  d5 {[%clk 0:02:59]} 4. exd5 {[%clk 0:02:58]}  Qxd5 {[%clk 0:03:00]} 5. d4 {[%clk 0:02:59]}  Bg7 {[%clk 0:03:00]} 6. Be3 {[%clk 0:02:58]}  cxd4 {[%clk 0:02:44]} 7. Bxd4 {[%clk 0:02:56]}  Nf6 {[%clk 0:02:42]} 8. Na3 {[%clk 0:02:52]}  O-O {[%clk 0:02:40]} 9. Bc4 {[%clk 0:02:51]}  Qe4+ {[%clk 0:02:41]} 10. Qe2 {[%clk 0:02:50]}  Qxe2+ {[%clk 0:02:38]} 11. Bxe2 {[%clk 0:02:48]}  Nc6 {[%clk 0:02:38]} 12. Be3 {[%clk 0:02:47]}  Nd5 {[%clk 0:02:33]} 13. Bd2 {[%clk 0:02:46]}  Bf5 {[%clk 0:02:29]} 14. O-O {[%clk 0:02:43]}  Rfd8 {[%clk 0:02:27]} 15. Rad1 {[%clk 0:02:41]}  Rac8 {[%clk 0:02:20]} 16. Rfe1 {[%clk 0:02:39]}  e5 {[%clk 0:01:48]} 17. Bc1 {[%clk 0:02:34]}  Bf8 {[%clk 0:01:43]} 18. Nc4 {[%clk 0:02:31]}  f6 {[%clk 0:01:41]} 19. Ne3 {[%clk 0:02:27]}  Nxe3 {[%clk 0:01:28]} 20. Bxe3 {[%clk 0:02:26]}  Bc2 {[%clk 0:01:25]} 21. Rxd8 {[%clk 0:02:23]}  Rxd8 {[%clk 0:01:26]} 22. Rc1 {[%clk 0:02:21]}  Be4 {[%clk 0:01:20]} 23. Nd2 {[%clk 0:02:20]}  Bd3 {[%clk 0:01:13]} 24. Bxd3 {[%clk 0:02:16]}  Rxd3 {[%clk 0:01:14]} 25. Kf1 {[%clk 0:02:17]}  Kf7 {[%clk 0:01:11]} 26. Ke2 {[%clk 0:02:16]}  Rd5 {[%clk 0:01:11]} 27. Rd1 {[%clk 0:02:05]}  Ke6 {[%clk 0:01:10]} 28. f3 {[%clk 0:02:02]}  Bc5 {[%clk 0:00:48]} 29. Bxc5 {[%clk 0:01:59]}  Rxc5 {[%clk 0:00:49]} 30. Ne4 {[%clk 0:01:59]}  Rb5 {[%clk 0:00:45]} 31. b4 {[%clk 0:01:54]}  f5 {[%clk 0:00:32]} 32. Nc5+ {[%clk 0:01:51]}  Kf6 {[%clk 0:00:23]} 33. a4 {[%clk 0:01:49]}  Rb6 {[%clk 0:00:23]} 34. Nd7+ {[%clk 0:01:48]}  Ke6 {[%clk 0:00:24]} 35. Nxb6 {[%clk 0:01:48]}  axb6 {[%clk 0:00:25]} 36. b5 {[%clk 0:01:43]}  Na5 {[%clk 0:00:24]} 37. Rd8 {[%clk 0:01:43]}  h5 {[%clk 0:00:18]} 38. Rg8 {[%clk 0:01:41]}  Kf7 {[%clk 0:00:18]} 39. Rc8 {[%clk 0:01:41]}  Ke6 {[%clk 0:00:18]} 40. Kd3 {[%clk 0:01:40]}  Nb3 {[%clk 0:00:17]} 41. Kc2 {[%clk 0:01:32]}  Nc5 {[%clk 0:00:06]} 42. a5 {[%clk 0:01:31]}  Nd7 {[%clk 0:00:04]} 43. a6 {[%clk 0:01:28]}  bxa6 {[%clk 0:00:04]} 1-0


[Site "https://www.chess.com"]

[Event "Titled Tuesday Blitz August 15 Late 2023"]
[White "Kochiev, Ivan"]
[Black "Balla, Tamas-Kristof"]
[WhiteFideId "2917890"]
[BlackFideId "1208497"]
[WhiteElo "2566"]
[BlackElo "2406"]
[Result "1-0"]
[Round "3"]
[TimeControl "180+1"]
[Date "2023.08.15"]
[WhiteClock "0:00:57"]
[BlackClock "0:00:00"]
[Board "93"]

1. e4 {[%clk 0:03:00]}  c5 {[%clk 0:02:58]} 2. Nf3 {[%clk 0:03:00]}  Nc6 {[%clk 0:02:58]} 3. d4 {[%clk 0:02:59]}  cxd4 {[%clk 0:02:59]} 4. Nxd4 {[%clk 0:02:58]}  e5 {[%clk 0:03:00]} 5. Nb5 {[%clk 0:02:57]}  d6 {[%clk 0:03:00]} 6. c4 {[%clk 0:02:57]}  Be7 {[%clk 0:03:00]} 7. Be2 {[%clk 0:02:56]}  f5 {[%clk 0:02:50]} 8. N1c3 {[%clk 0:02:52]}  a6 {[%clk 0:02:49]} 9. Na3 {[%clk 0:02:51]}  Nf6 {[%clk 0:02:50]} 10. exf5 {[%clk 0:02:48]}  Bxf5 {[%clk 0:02:50]} 11. O-O {[%clk 0:02:49]}  O-O {[%clk 0:02:48]} 12. Be3 {[%clk 0:02:48]}  Qd7 {[%clk 0:02:37]} 13. Qd2 {[%clk 0:02:43]}  Rac8 {[%clk 0:01:21]} 14. Nc2 {[%clk 0:02:30]}  Ng4 {[%clk 0:01:14]} 15. Bxg4 {[%clk 0:02:28]}  Bxg4 {[%clk 0:01:14]} 16. b3 {[%clk 0:02:27]}  Qf5 {[%clk 0:01:06]} 17. Nd5 {[%clk 0:02:24]}  Qg6 {[%clk 0:00:45]} 18. Kh1 {[%clk 0:02:12]}  Rf5 {[%clk 0:00:28]} 19. f3 {[%clk 0:02:05]}  Bh5 {[%clk 0:00:15]} 20. g4 {[%clk 0:02:03]}  Bxg4 {[%clk 0:00:15]} 21. fxg4 {[%clk 0:02:04]}  Qxg4 {[%clk 0:00:15]} 22. Rxf5 {[%clk 0:01:59]}  Qxf5 {[%clk 0:00:16]} 23. Ncb4 {[%clk 0:01:45]}  Bh4 {[%clk 0:00:09]} 24. Qg2 {[%clk 0:01:29]}  Nxb4 {[%clk 0:00:06]} 25. Nxb4 {[%clk 0:01:30]}  Rf8 {[%clk 0:00:06]} 26. Rg1 {[%clk 0:01:15]}  g6 {[%clk 0:00:07]} 27. Qxb7 {[%clk 0:01:13]}  Bf2 {[%clk 0:00:05]} 28. Rf1 {[%clk 0:00:58]}  Qh3 {[%clk 0:00:04]} 29. Rxf2 {[%clk 0:00:57]}  Rxf2 {[%clk 0:00:04]} 30. Bxf2 {[%clk 0:00:56]}  Qf1+ {[%clk 0:00:00]} 31. Bg1 {[%clk 0:00:57]} 1-0


[Site "https://www.chess.com"]

[Event "Titled Tuesday Blitz August 15 Late 2023"]
[White "Gasparyan, David"]
[Black "Todorovic, Bojan"]
[WhiteFideId "13311980"]
[BlackFideId "917087"]
[WhiteElo "2565"]
[BlackElo "2405"]
[Result "0-1"]
[Round "3"]
[TimeControl "180+1"]
[Date "2023.08.15"]
[WhiteClock "0:00:33"]
[BlackClock "0:01:08"]
[Board "95"]

1. d4 {[%clk 0:02:59]}  g6 {[%clk 0:02:58]} 2. c4 {[%clk 0:02:58]}  Bg7 {[%clk 0:02:58]} 3. h4 {[%clk 0:02:58]}  Nf6 {[%clk 0:02:57]} 4. Nc3 {[%clk 0:02:56]}  c5 {[%clk 0:02:52]} 5. d5 {[%clk 0:02:54]}  d6 {[%clk 0:02:48]} 6. e4 {[%clk 0:02:54]}  e6 {[%clk 0:02:45]} 7. dxe6 {[%clk 0:02:52]}  Bxe6 {[%clk 0:02:44]} 8. Be2 {[%clk 0:02:46]}  Nc6 {[%clk 0:02:40]} 9. Nf3 {[%clk 0:02:44]}  O-O {[%clk 0:02:37]} 10. Bf4 {[%clk 0:02:40]}  Re8 {[%clk 0:02:24]} 11. Qxd6 {[%clk 0:02:30]}  Qa5 {[%clk 0:02:23]} 12. O-O {[%clk 0:02:17]}  Rad8 {[%clk 0:02:22]} 13. Qc7 {[%clk 0:02:17]}  Qb4 {[%clk 0:02:16]} 14. Be3 {[%clk 0:02:04]}  Qxb2 {[%clk 0:02:12]} 15. Nb5 {[%clk 0:01:53]}  Qxe2 {[%clk 0:02:09]} 16. Qxb7 {[%clk 0:01:45]}  Nd4 {[%clk 0:01:38]} 17. Nbxd4 {[%clk 0:01:41]}  cxd4 {[%clk 0:01:38]} 18. Nxd4 {[%clk 0:01:42]}  Qxc4 {[%clk 0:01:38]} 19. Nc6 {[%clk 0:01:37]}  Rd7 {[%clk 0:01:35]} 20. Qb4 {[%clk 0:01:11]}  Qxc6 {[%clk 0:01:33]} 21. Rac1 {[%clk 0:01:05]}  Qxe4 {[%clk 0:01:32]} 22. Qxe4 {[%clk 0:00:53]}  Nxe4 {[%clk 0:01:32]} 23. Rc6 {[%clk 0:00:47]}  Bxa2 {[%clk 0:01:28]} 24. Ra6 {[%clk 0:00:47]}  Bc4 {[%clk 0:01:25]} 25. Rxa7 {[%clk 0:00:47]}  Rxa7 {[%clk 0:01:24]} 26. Bxa7 {[%clk 0:00:47]}  Bxf1 {[%clk 0:01:24]} 27. Kxf1 {[%clk 0:00:48]}  Nd2+ {[%clk 0:01:21]} 28. Kg1 {[%clk 0:00:48]}  Re1+ {[%clk 0:01:20]} 29. Kh2 {[%clk 0:00:49]}  Be5+ {[%clk 0:01:20]} 30. g3 {[%clk 0:00:48]}  f5 {[%clk 0:01:17]} 31. f4 {[%clk 0:00:47]}  Re2+ {[%clk 0:01:14]} 32. Kh3 {[%clk 0:00:42]}  Nf3 {[%clk 0:01:10]} 33. g4 {[%clk 0:00:41]}  Bxf4 {[%clk 0:01:10]} 34. gxf5 {[%clk 0:00:33]}  gxf5 {[%clk 0:01:08]} 0-1


[Site "https://www.chess.com"]

[Event "Titled Tuesday Blitz August 15 Late 2023"]
[White "Wafa, Shrook"]
[Black "Vovk, Orest"]
[WhiteFideId "10609970"]
[BlackFideId "14113490"]
[WhiteElo "2405"]
[BlackElo "2565"]
[Result "0-1"]
[Round "3"]
[TimeControl "180+1"]
[Date "2023.08.15"]
[WhiteClock "0:01:31"]
[BlackClock "0:00:24"]
[Board "96"]

1. e4 {[%clk 0:03:00]}  g6 {[%clk 0:03:00]} 2. d4 {[%clk 0:02:59]}  Nf6 {[%clk 0:03:00]} 3. Nc3 {[%clk 0:02:59]}  d5 {[%clk 0:03:00]} 4. exd5 {[%clk 0:02:59]}  Nxd5 {[%clk 0:02:59]} 5. Nxd5 {[%clk 0:02:59]}  Qxd5 {[%clk 0:02:59]} 6. Nf3 {[%clk 0:03:00]}  Bg4 {[%clk 0:02:58]} 7. Be2 {[%clk 0:03:00]}  Bg7 {[%clk 0:02:56]} 8. O-O {[%clk 0:03:00]}  O-O {[%clk 0:02:52]} 9. c4 {[%clk 0:03:00]}  Qd6 {[%clk 0:02:46]} 10. Be3 {[%clk 0:03:00]}  Nc6 {[%clk 0:02:44]} 11. d5 {[%clk 0:02:59]}  Ne5 {[%clk 0:02:35]} 12. Nxe5 {[%clk 0:02:58]}  Bxe2 {[%clk 0:02:34]} 13. Qxe2 {[%clk 0:02:51]}  Qxe5 {[%clk 0:02:29]} 14. Rab1 {[%clk 0:02:51]}  e6 {[%clk 0:02:26]} 15. Rfd1 {[%clk 0:02:48]}  Rfd8 {[%clk 0:02:15]} 16. dxe6 {[%clk 0:02:42]}  Qxe6 {[%clk 0:02:15]} 17. b3 {[%clk 0:02:40]}  a5 {[%clk 0:02:07]} 18. Qf3 {[%clk 0:02:36]}  c6 {[%clk 0:02:04]} 19. h3 {[%clk 0:02:36]}  h6 {[%clk 0:02:03]} 20. Bb6 {[%clk 0:02:35]}  Rxd1+ {[%clk 0:01:59]} 21. Rxd1 {[%clk 0:02:35]}  a4 {[%clk 0:01:58]} 22. Qd3 {[%clk 0:02:26]}  axb3 {[%clk 0:01:56]} 23. axb3 {[%clk 0:02:26]}  Ra1 {[%clk 0:01:29]} 24. Rxa1 {[%clk 0:02:07]}  Bxa1 {[%clk 0:01:30]} 25. Qe3 {[%clk 0:02:07]}  Qxe3 {[%clk 0:01:25]} 26. Bxe3 {[%clk 0:02:06]}  h5 {[%clk 0:01:14]} 27. Kf1 {[%clk 0:02:05]}  Kf8 {[%clk 0:01:12]} 28. Bc5+ {[%clk 0:01:53]}  Ke8 {[%clk 0:01:12]} 29. Ke2 {[%clk 0:01:53]}  Kd7 {[%clk 0:01:11]} 30. Ke3 {[%clk 0:01:53]}  Bc3 {[%clk 0:01:06]} 31. g4 {[%clk 0:01:48]}  hxg4 {[%clk 0:01:03]} 32. hxg4 {[%clk 0:01:48]}  Ke6 {[%clk 0:01:04]} 33. f4 {[%clk 0:01:48]}  f5 {[%clk 0:01:03]} 34. gxf5+ {[%clk 0:01:45]}  Kxf5 {[%clk 0:01:02]} 35. Kf3 {[%clk 0:01:45]}  Bd2 {[%clk 0:00:56]} 36. Bd6 {[%clk 0:01:45]}  b5 {[%clk 0:00:56]} 37. cxb5 {[%clk 0:01:44]}  cxb5 {[%clk 0:00:56]} 38. Be5 {[%clk 0:01:44]}  g5 {[%clk 0:00:53]} 39. Bc7 {[%clk 0:01:41]}  Bxf4 {[%clk 0:00:49]} 40. Bb6 {[%clk 0:01:39]}  g4+ {[%clk 0:00:48]} 41. Kg2 {[%clk 0:01:39]}  Ke4 {[%clk 0:00:48]} 42. Bc5 {[%clk 0:01:37]}  Kd3 {[%clk 0:00:48]} 43. b4 {[%clk 0:01:37]}  Kc4 {[%clk 0:00:45]} 44. Bf8 {[%clk 0:01:36]}  Bd2 {[%clk 0:00:39]} 45. Kg3 {[%clk 0:01:36]}  Bxb4 {[%clk 0:00:39]} 46. Bh6 {[%clk 0:01:36]}  Bc3 {[%clk 0:00:36]} 47. Kxg4 {[%clk 0:01:36]}  b4 {[%clk 0:00:36]} 48. Kf3 {[%clk 0:01:37]}  b3 {[%clk 0:00:32]} 49. Bc1 {[%clk 0:01:37]}  Kd3 {[%clk 0:00:32]} 50. Kf2 {[%clk 0:01:37]}  Bb4 {[%clk 0:00:25]} 51. Bb2 {[%clk 0:01:35]}  Kc2 {[%clk 0:00:25]} 52. Be5 {[%clk 0:01:33]}  Bc3 {[%clk 0:00:25]} 53. Ke3 {[%clk 0:01:31]}  Bxe5 {[%clk 0:00:24]} 0-1


[Site "https://www.chess.com"]

[Event "Titled Tuesday Blitz August 15 Late 2023"]
[White "Schekachikhin, Maksim"]
[Black "Fernandez Garcia, Gumersindo"]
[WhiteFideId "24177830"]
[BlackFideId "24516740"]
[WhiteElo "2563"]
[BlackElo "2401"]
[Result "1-0"]
[Round "3"]
[TimeControl "180+1"]
[Date "2023.08.15"]
[WhiteClock "0:00:08"]
[BlackClock "0:00:02"]
[Board "98"]

1. d4 {[%clk 0:03:00]}  Nf6 {[%clk 0:02:58]} 2. Nf3 {[%clk 0:03:00]}  d5 {[%clk 0:02:56]} 3. e3 {[%clk 0:03:00]}  Bg4 {[%clk 0:02:53]} 4. c4 {[%clk 0:02:56]}  c6 {[%clk 0:02:52]} 5. Nc3 {[%clk 0:02:56]}  e6 {[%clk 0:02:51]} 6. h3 {[%clk 0:02:55]}  Bh5 {[%clk 0:02:51]} 7. Qb3 {[%clk 0:02:53]}  Qb6 {[%clk 0:02:47]} 8. c5 {[%clk 0:02:52]}  Qc7 {[%clk 0:02:31]} 9. Be2 {[%clk 0:02:49]}  Nbd7 {[%clk 0:02:31]} 10. Bd2 {[%clk 0:02:48]}  e5 {[%clk 0:02:13]} 11. Qc2 {[%clk 0:02:36]}  e4 {[%clk 0:02:11]} 12. Ng1 {[%clk 0:02:34]}  Bxe2 {[%clk 0:02:10]} 13. Ngxe2 {[%clk 0:02:34]}  Be7 {[%clk 0:02:07]} 14. b4 {[%clk 0:02:31]}  O-O {[%clk 0:02:05]} 15. a4 {[%clk 0:02:31]}  b6 {[%clk 0:02:03]} 16. O-O {[%clk 0:02:29]}  a5 {[%clk 0:01:53]} 17. cxb6 {[%clk 0:02:28]}  Nxb6 {[%clk 0:01:52]} 18. bxa5 {[%clk 0:02:23]}  Nc4 {[%clk 0:01:46]} 19. Rfb1 {[%clk 0:02:15]}  Rxa5 {[%clk 0:01:25]} 20. Nb5 {[%clk 0:01:28]}  cxb5 {[%clk 0:01:24]} 21. Bxa5 {[%clk 0:01:28]}  Qxa5 {[%clk 0:01:21]} 22. axb5 {[%clk 0:01:27]}  Qb6 {[%clk 0:01:18]} 23. Ra6 {[%clk 0:01:26]}  Qb7 {[%clk 0:01:18]} 24. Qa4 {[%clk 0:01:21]}  Bd6 {[%clk 0:01:03]} 25. b6 {[%clk 0:01:01]}  Bb8 {[%clk 0:01:02]} 26. Qb5 {[%clk 0:00:56]}  h6 {[%clk 0:00:57]} 27. Nc3 {[%clk 0:00:51]}  Rc8 {[%clk 0:00:53]} 28. Rba1 {[%clk 0:00:43]}  Kh7 {[%clk 0:00:48]} 29. Na4 {[%clk 0:00:39]}  Nd6 {[%clk 0:00:35]} 30. Nc5 {[%clk 0:00:28]}  Qe7 {[%clk 0:00:30]} 31. Qe2 {[%clk 0:00:18]}  Nc4 {[%clk 0:00:29]} 32. b7 {[%clk 0:00:17]}  Rg8 {[%clk 0:00:27]} 33. Ra8 {[%clk 0:00:17]}  Qd6 {[%clk 0:00:24]} 34. g3 {[%clk 0:00:17]}  Nd7 {[%clk 0:00:21]} 35. Na6 {[%clk 0:00:17]}  Ndb6 {[%clk 0:00:18]} 36. Nxb8 {[%clk 0:00:16]}  Rxb8 {[%clk 0:00:18]} 37. Rxb8 {[%clk 0:00:16]}  Qxb8 {[%clk 0:00:19]} 38. Qg4 {[%clk 0:00:16]}  Qxb7 {[%clk 0:00:16]} 39. Qf5+ {[%clk 0:00:16]}  g6 {[%clk 0:00:17]} 40. Qf6 {[%clk 0:00:16]}  Qd7 {[%clk 0:00:16]} 41. h4 {[%clk 0:00:13]}  Qe6 {[%clk 0:00:16]} 42. Qd8 {[%clk 0:00:12]}  h5 {[%clk 0:00:16]} 43. Ra7 {[%clk 0:00:12]}  Kg7 {[%clk 0:00:12]} 44. Re7 {[%clk 0:00:10]}  Qf6 {[%clk 0:00:12]} 45. Qc7 {[%clk 0:00:09]}  Kg8 {[%clk 0:00:11]} 46. Re8+ {[%clk 0:00:09]}  Kg7 {[%clk 0:00:11]} 47. Rb8 {[%clk 0:00:09]}  Qf3 {[%clk 0:00:10]} 48. Qc5 {[%clk 0:00:09]}  Nxe3 {[%clk 0:00:06]} 49. Qf8+ {[%clk 0:00:09]}  Kf6 {[%clk 0:00:07]} 50. Rxb6+ {[%clk 0:00:07]}  Kf5 {[%clk 0:00:06]} 51. Qxf7+ {[%clk 0:00:07]}  Kg4 {[%clk 0:00:03]} 52. Rxg6+ {[%clk 0:00:07]}  Kh3 {[%clk 0:00:03]} 53. Qxf3 {[%clk 0:00:07]}  exf3 {[%clk 0:00:02]} 54. fxe3 {[%clk 0:00:08]} 1-0


[Site "https://www.chess.com"]